bitfinex-derivatives/quotes_SOLF0:USTF0_20250307
["timestamp","ask_amount","ask_price","bid_price","bid_amount"]
[1741307293091,43.25476844,138.0,137.86,31.73409877]
[1741307293491,43.25476844,138.0,137.86,29.48569877]
[1741307293696,43.25476844,137.92,137.86,29.48569877]
[1741307293896,43.25476844,137.88,137.86,17.79369877]
[1741307294097,7.2527,137.88,137.86,17.79369877]
[1741307294303,43.25476844,137.94,137.86,6.57909877]
[1741307294492,7.2491,137.95,137.86,6.57909877]
[1741307294695,43.25476844,138.01,137.86,6.62992549]
[1741307294901,43.25476844,137.97,137.86,6.62992549]
[1741307295103,43.25476844,137.97,137.86,6.57909877]
[1741307295401,43.25476844,137.89,137.72,43.25476844]
[1741307295602,7.2568,137.8,137.7,137.29702718]
[1741307295800,43.25476844,137.85,137.7,137.29702718]
[1741307296200,0.04691893,137.83,137.81,7.938e-05]
[1741307296400,43.25476844,137.85,137.7,137.29702718]
[1741307296703,43.25476844,137.81,137.7,137.29702718]
[1741307297093,43.25476844,137.85,137.7,137.29702718]
[1741307297503,0.05140577,137.77,137.74,0.05031809]
[1741307298007,0.6213,137.84,137.7,137.29702718]
[1741307298395,43.25476844,137.89,137.7,137.29702718]
[1741307298689,43.25476844,137.93,137.73,43.25476844]
[1741307298895,217.42,137.95,137.77,43.25476844]
[1741307299207,0.05020265,137.84,137.74,2.5055]
[1741307299398,43.25476844,137.93,137.74,2.5055]
[1741307299592,7.2502,137.93,137.81,7.256]
[1741307299795,43.25476844,137.99,137.82,2.5741]
[1741307299996,260.75476844,138.03,137.82,2.5741]
[1741307300205,0.05060751,137.88,137.83,2.4711]
[1741307300496,260.53367784,138.03,137.85,43.25476844]
[1741307300706,7.2501,137.93,137.91,0.05046082]
[1741307300898,43.25476844,137.99,137.84,1.45095763]
[1741307301204,43.87606844,138.07,137.84,44.70572607]
[1741307301497,43.25476844,138.1,137.92,43.25476844]
[1741307301689,7.2438,138.05,137.93,11.14451087]
[1741307301889,260.75476844,138.17,137.96,43.25476844]
[1741307302093,217.5,138.17,137.97,3.92069049]
[1741307302305,43.25476844,138.14,137.98,1.50337949]
[1741307302702,43.25476844,138.17,138.0,43.25476844]
[1741307302897,43.25476844,138.21,138.01,218.90917034]
[1741307303097,43.25476844,138.13,138.01,1.44917034]
[1741307303606,43.25476844,138.05,138.01,7.034e-05]
[1741307303795,217.46,138.04,137.89,2.77429343]
[1741307304000,43.25476844,138.01,137.89,1.4504315]
[1741307304192,43.25476844,137.97,137.89,1.4504315]
[1741307304396,43.25476844,137.93,137.89,3.15e-05]
[1741307304598,43.25476844,137.93,137.74,7.3373]
[1741307304897,43.25476844,137.93,137.9,0.05126803]
[1741307305102,7.2504,137.92,137.9,0.05126803]
[1741307305399,217.46,138.01,137.81,262.0793909]
[1741307305400,43.25476844,138.01,137.81,262.0793909]
[1741307305601,43.25476844,138.05,137.85,43.25476844]
[1741307305802,43.25476844,138.05,137.9,0.05331306]
[1741307306192,260.75476844,138.08,137.86,2.3885]
[1741307306396,260.75476844,138.08,137.87,4.9744]
[1741307306706,43.25476844,138.3,137.96,0.05515152]
[1741307306707,43.25476844,138.12,137.96,0.05515152]
[1741307307009,43.25476844,138.08,137.96,0.05515152]
[1741307307210,43.25476844,138.08,137.92,62.0]
[1741307307408,1.26128085,138.15,137.92,105.25476844]
[1741307307701,43.25476844,138.18,137.96,43.25476844]
[1741307307905,43.25476844,138.18,137.97,3.69429387]
[1741307308103,43.25476844,138.18,138.02,0.0529061]
[1741307308104,7.2405,138.11,138.02,0.0529061]
[1741307308299,43.25476844,138.22,138.02,233.9744]
[1741307308605,43.25476844,138.3,138.09,43.25476844]
[1741307308804,43.25476844,138.3,138.1,2.3708]
[1741307309002,217.46,138.31,138.1,2.3708]
[1741307309302,43.25476844,138.25,138.05,43.25476844]
[1741307309505,43.30890408,138.21,138.02,7.3452]
[1741307309701,43.25476844,138.25,138.05,50.49816844]
[1741307309898,43.25476844,138.25,138.06,1.32224445]
[1741307310406,217.46,138.31,138.02,7.3452]
[1741307310407,43.25476844,138.29,138.09,43.25476844]
[1741307310602,217.46,138.31,138.13,43.25476844]
[1741307310797,43.25476844,138.33,138.15,7.238]
[1741307311002,43.25476844,138.33,138.14,69.47908717]
[1741307311198,43.25476844,138.33,138.14,69.4313]
[1741307311403,43.25476844,138.29,138.14,7.4313]
[1741307312095,0.05111486,138.23,138.2,0.05066993]
[1741307312501,7.2348,138.22,138.14,4.9727]
[1741307312804,43.25476844,138.33,138.14,4.9727]
[1741307313008,0.05489499,138.23,138.2,0.0509267]
[1741307313206,0.05489499,138.23,138.14,4.9727]
[1741307313409,7.2369,138.18,138.14,4.9727]
[1741307313702,0.05385016,138.2,138.14,4.9727]
[1741307313907,0.05385016,138.2,138.15,0.04628705]
[1741307314104,7.2378,138.16,138.15,8.705e-05]
[1741307314304,43.25476844,138.17,138.01,2.4807]
[1741307314503,43.25476844,138.13,138.01,2.4807]
[1741307314904,43.25476844,138.13,137.96,2.3798]
[1741307315104,43.25476844,138.09,137.96,2.3798]
[1741307315304,43.25476844,138.09,137.93,196.90937392]
[1741307315611,0.05089516,138.06,138.03,0.04689331]
[1741307315999,260.51476844,138.17,138.03,3.62]
[1741307316204,43.25476844,138.21,138.0,217.26]
[1741307316407,0.0556992,138.06,138.03,0.04974511]
[1741307316708,43.25476844,138.21,138.02,43.25476844]
[1741307316903,43.25476844,138.24,138.03,8.96646088]
[1741307317103,43.25476844,138.24,138.04,1.32266088]
[1741307317303,43.25476844,138.24,138.06,43.25476844]
[1741307317505,43.25476844,138.24,138.07,63.32266088]
[1741307317708,43.25476844,138.24,138.08,1.32266088]
[1741307317905,0.05522277,138.16,138.14,0.0478714]
[1741307318202,0.05522277,138.16,137.89,217.26]
[1741307318203,217.26,138.15,137.89,217.26]
[1741307318401,217.26,138.22,137.96,43.25476844]
[1741307318604,217.26,138.22,137.9,1.32305246]
[1741307318605,7.24,138.12,137.97,44.5778209]
[1741307318800,43.25476844,138.16,137.93,43.25476844]
[1741307319002,43.25476844,138.24,138.01,43.25476844]
[1741307319208,43.25476844,138.24,138.05,43.25476844]
[1741307319410,43.25476844,138.24,138.02,225.89117615]
[1741307319411,43.25476844,138.24,138.02,224.5684]
[1741307319710,0.04639389,138.14,138.11,0.04790372]
[1741307320411,43.25476844,138.28,138.06,1.32223558]
[1741307320615,43.25476844,138.29,138.09,43.25476844]
[1741307320909,217.26,138.31,138.1,63.32197975]
[1741307321117,43.25476844,138.36,138.13,43.25476844]
[1741307321306,43.25476844,138.32,138.14,226.02377975]
[1741307321507,43.25476844,138.28,138.14,7.4818]
[1741307321807,43.25476844,138.24,138.05,2.512]
[1741307322010,43.25476844,138.24,138.06,1.32209072]
[1741307322211,217.22,138.28,138.09,43.25476844]
[1741307322417,43.25476844,138.45,138.1,1.32183838]
[1741307322418,43.25476844,138.31,138.1,1.32183838]
[1741307322719,43.25476844,138.23,138.05,2.512]
[1741307322911,43.25476844,138.27,138.05,45.76676844]
[1741307323218,0.04693794,138.22,138.19,0.04759233]
[1741307323407,7.2352,138.21,138.09,43.25476844]
[1741307323714,0.04627006,138.22,138.05,45.76676844]
[1741307323914,0.04627006,138.22,138.05,2.512]
[1741307324115,43.25476844,138.23,138.05,2.512]
[1741307324612,43.25476844,138.19,138.01,4.9698]
[1741307324814,260.43476844,138.19,138.01,4.9698]
[1741307325017,260.43476844,138.19,138.09,0.05109299]
[1741307325315,0.0556198,138.11,138.09,0.05109299]
[1741307325512,260.43476844,138.19,138.02,43.25476844]
[1741307325709,0.05384469,138.15,138.09,0.0518458]
[1741307326013,43.25476844,138.11,137.94,43.25476844]
[1741307326215,43.25476844,138.15,137.94,43.25476844]
[1741307326405,43.25476844,138.15,137.97,1.26036724]
[1741307326809,43.25476844,138.15,137.94,43.25476844]
[1741307327007,217.2,138.17,137.98,43.25476844]
[1741307327314,0.04732394,138.06,138.03,0.0475415]
[1741307327510,217.2,138.17,137.99,63.32297573]
[1741307327712,43.25476844,138.19,138.04,7.2437]
[1741307327915,43.25476844,138.19,138.03,0.05225113]
[1741307328118,43.25476844,138.15,137.98,1.2603216]
[1741307328309,43.25476844,138.15,137.94,43.25476844]
[1741307328511,41.27905883,138.07,137.93,41.27905883]
[1741307328808,41.27905883,138.01,137.91,4.9502]
[1741307329011,41.27905883,138.04,137.84,2.6073]
[1741307329012,41.27905883,137.98,137.84,2.6073]
[1741307329412,41.27905883,137.92,137.9,0.04640507]
[1741307329613,41.27905883,137.91,137.82,9.78056183]
[1741307329817,41.27905883,137.9,137.82,9.78056183]
[1741307330015,41.27905883,137.87,137.82,6.183e-05]
[1741307330220,41.27905883,137.84,137.81,96.59704336]
[1741307330715,7.2562,137.81,137.8,88.02562435]
[1741307330905,41.27905883,137.83,137.8,88.02562435]
[1741307331109,0.04717712,137.84,137.8,88.02562435]
[1741307332223,0.04717712,137.84,137.79,0.04684236]
[1741307335315,151.02412181,138.03,137.83,43.4255752]
[1741307336121,7.2484,137.96,137.83,43.4255752]
[1741307336319,43.4255752,137.99,137.79,43.4255752]
[1741307336620,7.2514,137.9,137.88,0.04717985]
[1741307336812,0.05242792,137.91,137.88,0.04717985]
[1741307337014,217.46,137.95,137.76,62.0]
[1741307337218,217.46,137.95,137.88,0.0545998]
[1741307337429,0.04843554,137.91,137.88,0.0545998]
[1741307337616,217.46,137.95,137.79,43.4255752]
[1741307337819,0.05554397,137.91,137.88,0.05131012]
[1741307338328,3.67554397,137.91,137.75,50.7820752]
[1741307338521,0.05554397,137.91,137.75,50.7820752]
[1741307338723,7.2537,137.86,137.75,58.0413752]
[1741307338922,43.4255752,137.92,137.75,50.7820752]
[1741307339125,43.4255752,137.92,137.75,7.3565]
[1741307339318,1.45022115,137.91,137.75,7.3565]
[1741307339519,0.04952232,137.85,137.82,0.05461674]
[1741307339717,43.4255752,138.0,137.82,0.05461674]
[1741307340019,43.4255752,138.04,137.75,7.3565]
[1741307340224,43.4255752,138.12,137.91,43.4255752]
[1741307340420,43.4255752,138.12,137.92,7.359]
[1741307340817,43.4255752,138.08,137.93,62.0]
[1741307341022,0.04982344,138.03,138.01,0.05294607]
[1741307341225,151.02412181,138.12,137.95,43.4255752]
[1741307341522,2.417e-05,138.03,138.01,0.05141083]
[1741307341826,107.59854661,138.12,137.95,43.4255752]
[1741307342024,43.4255752,138.08,137.87,43.4255752]
[1741307342226,43.4255752,138.04,137.87,43.4255752]
[1741307342528,43.4255752,138.04,137.78,217.46]
[1741307342529,217.46,138.07,137.91,43.4255752]
[1741307342734,107.59854661,138.12,137.95,43.4255752]
[1741307342926,107.59854661,138.12,138.02,7.245]
[1741307343232,107.59854661,138.12,137.99,43.4255752]
[1741307343622,151.02412181,138.12,137.93,43.4255752]
[1741307343826,368.48412181,138.12,137.92,7.1902]
[1741307344026,260.8855752,138.12,137.92,7.1902]
[1741307344231,43.4255752,138.18,138.01,0.04781692]
[1741307344529,43.4255752,138.14,137.93,62.0]
[1741307344734,43.4255752,138.1,137.93,62.0]
[1741307344930,43.4255752,138.14,137.93,62.0]
[1741307345136,43.4255752,138.1,137.93,62.0]
[1741307345331,43.4255752,138.06,137.84,43.4255752]
[1741307345530,43.4255752,138.06,137.85,2.4404]
[1741307345730,0.04985073,138.03,138.0,2.955e-05]
[1741307345935,43.4255752,138.02,137.8,43.4255752]
[1741307346135,43.4255752,137.98,137.81,2.4404]
[1741307346324,43.4255752,138.02,137.84,43.4255752]
[1741307346527,43.4255752,138.1,137.92,43.4255752]
[1741307346731,43.4255752,138.14,137.96,43.4255752]
[1741307346938,43.4255752,138.18,138.0,43.4255752]
[1741307347435,260.8455752,138.21,138.04,0.0543963]
[1741307347637,7.236,138.2,138.06,7.243]
[1741307347828,217.44,138.28,138.06,7.243]
[1741307347829,325.03854661,138.28,138.08,43.4255752]
[1741307348140,107.59854661,138.28,138.09,2.388]
[1741307348633,43.4255752,138.26,138.09,2.388]
[1741307348938,0.05426688,138.2,138.17,0.04614406]
[1741307349339,217.44,138.27,138.12,43.4255752]
[1741307349833,0.05101432,138.2,138.17,0.04728107]
[1741307350242,107.59854661,138.28,138.12,43.4255752]
[1741307350533,107.59854661,138.28,138.16,43.4255752]
[1741307350736,107.59854661,138.28,138.17,2.59610782]
[1741307350931,7.2343,138.23,138.12,43.4255752]
[1741307351132,260.8655752,138.34,138.12,43.4255752]
[1741307351342,43.4255752,138.3,138.12,43.4255752]
[1741307351535,43.4255752,138.26,138.1,2.549]
[1741307352037,0.04721105,138.19,138.09,2.388]
[1741307352438,43.4255752,138.3,138.17,0.05119803]
[1741307352634,43.4255752,138.3,138.09,2.388]
[1741307353032,260.8655752,138.34,138.22,0.05136931]
[1741307353340,43.4255752,138.26,138.09,2.388]
[1741307353534,43.4255752,138.22,138.05,2.5748]
[1741307353734,43.4255752,138.18,138.0,43.4255752]
[1741307353928,217.26,138.18,138.0,43.4255752]
[1741307354141,217.26,138.27,138.08,43.47728499]
[1741307354329,217.26,138.27,138.09,4.9231]
[1741307354530,41.15460469,138.29,138.15,41.15460469]
[1741307355232,41.15460469,138.32,138.18,41.15460469]
[1741307355434,217.26,138.43,138.24,41.15460469]
[1741307355633,217.26,138.43,138.21,0.04576096]
[1741307355634,41.15460469,138.4,138.27,41.15460469]
[1741307355827,258.41460469,138.43,138.27,41.15460469]
[1741307356232,258.41460469,138.43,138.3,41.15460469]
[1741307356536,107.59854661,138.45,138.36,41.15460469]
[1741307356739,107.59854661,138.45,138.39,41.15460469]
[1741307357134,107.59854661,138.46,138.39,41.15460469]
[1741307357332,107.59854661,138.46,138.41,0.04768939]
[1741307357731,7.224,138.43,138.41,0.04768939]
[1741307358036,41.15460469,138.42,138.28,43.55420469]
[1741307358236,7.2277,138.36,138.28,2.3996]
[1741307358443,148.7531513,138.46,138.3,41.15460469]
[1741307358637,107.59854661,138.46,138.33,41.15460469]
[1741307358936,41.15460469,138.45,138.33,41.15460469]
[1741307359143,41.15460469,138.42,138.3,41.15460469]
[1741307359443,0.04819149,138.4,138.38,0.04805308]
[1741307359642,0.04819149,138.4,138.33,41.15460469]
[1741307359940,107.59854661,138.46,138.39,41.15460469]
[1741307360132,107.59854661,138.46,138.42,41.15460469]
[1741307360437,0.04895928,138.45,138.42,41.15460469]
[1741307360641,0.04895928,138.45,138.41,0.04667434]
[1741307361234,0.04895928,138.45,138.41,41.20127903]
[1741307361438,217.06,138.65,138.44,41.15460469]
[1741307361632,41.15460469,138.54,138.41,41.20127903]
[1741307361838,217.06,138.63,138.41,41.15460469]
[1741307362144,37.59730364,138.53,138.39,41.15460469]
[1741307362440,41.15460469,138.55,138.41,41.15460469]
[1741307362638,51.21655336,138.59,138.45,51.26599293]
[1741307362833,51.21655336,138.56,138.45,0.04943957]
[1741307363039,51.21655336,138.56,138.39,51.21655336]
[1741307363240,51.21655336,138.56,138.49,0.04975365]
[1741307363440,2.5865,138.59,138.45,51.21655336]
[1741307363837,51.21655336,138.56,138.51,0.05140093]
[1741307364038,7.222,138.47,138.39,51.21655336]
[1741307364344,51.21655336,138.53,138.36,51.21655336]
[1741307364345,51.21655336,138.5,138.36,51.21655336]
[1741307364532,51.21655336,138.5,138.34,221.9089]
[1741307364533,7.2253,138.4,138.34,2.588]
[1741307364739,51.21655336,138.44,138.3,51.21655336]
[1741307365038,7.2258,138.39,138.28,7.231]
[1741307365240,51.27205327,138.38,138.36,0.05168417]
[1741307365438,51.27205327,138.38,138.27,216.94]
[1741307365439,51.21655336,138.39,138.26,2.5897]
[1741307366041,53.80305336,138.46,138.31,51.21655336]
[1741307366244,2.5865,138.46,138.34,51.21655336]
[1741307366639,0.04683361,138.41,138.39,0.04946161]
[1741307366943,53.80305336,138.46,138.39,0.04946161]
[1741307367245,51.21655336,138.4,138.26,2.5897]
[1741307367448,51.21655336,138.43,138.28,51.21655336]
[1741307367642,2.5865,138.46,138.31,51.21655336]
[1741307367844,53.80305336,138.46,138.31,51.21655336]
[1741307368143,51.21655336,138.43,138.34,7.2283]
[1741307368352,0.05493311,138.4,138.37,0.04735737]
[1741307368740,51.21655336,138.4,138.27,2.3653]
[1741307368943,51.21655336,138.37,138.27,2.3653]
[1741307369245,7.228,138.35,138.26,2.5897]
[1741307369449,51.21655336,138.43,138.29,51.21655336]
[1741307369653,53.80305336,138.46,138.32,51.21655336]
[1741307369950,2.5865,138.46,138.32,51.21655336]
[1741307370143,51.21655336,138.4,138.26,2.5897]
[1741307370342,7.2289,138.33,138.26,2.5897]
[1741307370541,51.21655336,138.37,138.23,1.25813449]
[1741307370746,51.21655336,138.34,138.21,51.21655336]
[1741307370940,51.21655336,138.34,138.19,1.25854399]
[1741307371141,61.73394061,138.28,138.14,278.59394061]
[1741307371346,7.2336,138.25,138.14,285.83274061]
[1741307371553,0.05296875,138.22,138.2,0.05046804]
[1741307371752,61.78690936,138.22,138.2,0.05046804]
[1741307371948,61.78690936,138.22,138.08,61.73394061]
[1741307372256,61.78690936,138.22,138.05,4.8723]
[1741307372257,61.73394061,138.16,138.05,4.8723]
[1741307372455,7.2401,138.12,138.05,4.8723]
[1741307372750,2.5301,138.21,138.07,61.73394061]
[1741307373250,0.05495015,138.15,138.13,0.05224519]
[1741307373445,0.05495015,138.15,138.02,78.22760753]
[1741307373640,2.5301,138.21,138.07,61.73394061]
[1741307373853,2.5301,138.21,138.02,78.22760753]
[1741307373854,61.73394061,138.18,138.02,78.22760753]
[1741307374056,61.73394061,138.08,138.02,78.22760753]
[1741307374646,61.78538274,138.06,138.04,0.04917783]
[1741307374841,61.78538274,138.06,138.02,67.21740753]
[1741307375066,7.2446,138.03,138.02,51.51360753]
[1741307375264,61.73394061,138.03,138.0,117.43476123]
[1741307375457,61.73394061,138.06,138.0,117.43476123]
[1741307375761,61.73394061,138.18,138.01,61.73394061]
[1741307375762,61.73394061,138.14,138.01,61.73394061]
[1741307375961,61.73394061,138.21,138.04,61.73394061]
[1741307376158,61.73394061,138.21,138.09,7.2413]
[1741307376358,61.73394061,138.21,138.07,61.73394061]
[1741307376663,0.04966202,138.14,138.05,216.96]
[1741307376964,1363.59394061,138.39,138.05,216.96]
[1741307376965,21.83,138.5,138.13,0.04942296]
[1741307377162,61.73394061,138.31,138.17,61.73394061]
[1741307377753,61.73394061,138.25,138.15,217.02]
[1741307378059,61.73394061,138.25,138.12,2.4718]
[1741307378256,61.73394061,138.32,138.12,2.4718]
[1741307378462,0.05115078,138.21,138.19,0.04668408]
[1741307378963,0.05115078,138.21,138.14,61.73394061]
[1741307378964,61.73394061,138.28,138.12,2.4718]
[1741307379162,61.73394061,138.28,138.14,61.73394061]
[1741307379466,61.73394061,138.25,138.12,2.4718]
[1741307379857,7.2349,138.22,138.12,2.4718]
[1741307380163,61.73394061,138.25,138.17,0.05092393]
[1741307380164,0.0549011,138.2,138.17,0.05092393]
[1741307380555,2.6104,138.31,138.17,0.05092393]
[1741307380556,2.6104,138.31,138.17,3.67092393]
[1741307380758,2.6104,138.31,138.17,61.78486454]
[1741307380959,2.6104,138.31,138.14,61.73394061]
[1741307381162,61.73394061,138.26,138.12,2.4718]
[1741307381558,61.73394061,138.23,138.12,2.4718]
[1741307381753,61.73394061,138.2,138.08,217.02]
[1741307381957,61.73394061,138.2,138.18,0.05351733]
[1741307381958,61.78237158,138.2,138.18,0.05351733]
[1741307382366,61.73394061,138.2,138.08,217.02]
[1741307382552,7.2348,138.22,138.08,217.02]
[1741307382758,0.04835239,138.2,138.18,0.04735983]
[1741307383167,61.73394061,138.2,138.05,2.593]
[1741307383366,61.73394061,138.17,138.05,2.593]
[1741307383669,61.73394061,138.14,138.03,2.4574]
[1741307383870,61.73394061,138.11,137.98,2.593]
[1741307384366,61.73394061,138.08,138.03,0.05204509]
[1741307384568,0.05411497,138.06,138.03,0.05204509]
[1741307384761,61.73394061,138.08,137.98,2.593]
[1741307385066,61.73394061,138.11,137.99,1.26066402]
[1741307385269,0.04574774,138.06,138.03,0.05331518]
[1741307386355,0.04574774,138.06,137.94,3.68196957]
[1741307386356,61.73394061,138.05,137.94,1.26086957]
[1741307386662,0.04574774,138.06,137.96,61.73394061]
[1741307386858,61.73394061,138.14,137.99,68.98014061]
[1741307387174,61.73394061,138.09,137.95,4.981]
[1741307387466,61.73394061,138.09,137.96,61.73394061]
[1741307387671,61.73394061,138.09,137.95,4.981]
[1741307387672,0.05464778,138.03,138.01,0.05355765]
[1741307388166,61.73394061,138.12,138.01,0.05355765]
[1741307388167,61.73394061,138.08,138.01,0.05355765]
[1741307388355,0.05326107,138.03,138.01,0.05355765]
[1741307388558,0.05326107,138.03,137.99,61.73394061]
[1741307388861,7.2402,138.12,138.01,0.04894275]
[1741307389165,0.0856,138.24,138.08,61.73394061]
[1741307389367,61.73394061,138.22,138.08,61.73394061]
[1741307389868,61.73394061,138.19,138.05,64.35034061]
[1741307390054,7.2383,138.15,138.14,0.04671828]
[1741307390256,61.78731499,138.16,138.05,2.6164]
[1741307390456,61.78731499,138.16,138.02,278.85394061]
[1741307390659,61.73394061,138.13,138.02,217.12]
[1741307390854,61.73394061,138.17,138.02,278.85394061]
[1741307391059,7.2378,138.16,138.05,61.73394061]
[1741307391266,61.73394061,138.19,138.05,61.73394061]
[1741307391660,61.73394061,138.16,138.02,278.85394061]
[1741307391862,61.78728317,138.13,137.98,2.6164]
[1741307392069,61.73394061,138.1,137.95,219.7806]
[1741307392362,61.73394061,138.07,137.95,219.7806]
[1741307392757,61.73394061,138.11,137.95,219.7806]
[1741307392758,61.73394061,138.11,137.96,62.99476449]
[1741307392963,61.73394061,137.98,137.85,61.73394061]
[1741307393163,0.05401287,138.02,137.88,61.73394061]
[1741307393164,61.73394061,138.01,137.88,61.73394061]
[1741307393661,0.0470432,137.96,137.93,0.05330474]
[1741307393966,2.6087,138.12,137.94,61.73394061]
[1741307394157,64.34264061,138.12,137.97,61.73394061]
[1741307394360,64.34264061,138.12,138.0,61.73394061]
[1741307394564,61.73394061,138.15,138.0,61.73394061]
[1741307395168,61.73394061,138.18,138.03,61.73394061]
[1741307395367,0.04901284,138.09,138.06,0.05035873]
[1741307395563,0.1311,138.23,138.03,61.73394061]
[1741307395766,0.05199629,138.09,138.06,0.05478548]
[1741307396071,61.73394061,138.12,137.97,61.73394061]
[1741307396464,61.73394061,138.18,137.97,61.73394061]
[1741307396465,0.04722221,138.09,138.06,0.04850277]
[1741307396769,61.73394061,138.15,137.97,61.73394061]
[1741307397074,0.05152379,138.09,138.06,0.05385062]
[1741307397365,0.05152379,138.09,137.97,61.73394061]
[1741307397557,61.73394061,138.12,137.97,61.73394061]
[1741307397869,61.73394061,138.12,137.96,1.26059552]
[1741307397870,0.05482239,138.09,138.06,0.05047094]
[1741307398062,61.73394061,138.12,137.96,61.73394061]
[1741307398258,0.05220732,138.09,138.06,0.050329]
[1741307398761,0.05220732,138.09,137.96,1.26068686]
[1741307398762,61.73394061,138.1,137.96,62.99462747]
[1741307399068,61.73394061,138.07,137.95,2.5861]
[1741307399270,7.2441,138.04,137.95,2.5861]
[1741307399468,61.73394061,138.04,137.95,2.5861]
[1741307400163,61.73394061,138.01,137.88,2.5411]
[1741307400366,61.73394061,137.98,137.85,2.5673]
[1741307400868,61.73394061,137.95,137.85,2.5673]
[1741307401067,61.73394061,137.92,137.81,1.26198981]
[1741307401264,61.73394061,137.95,137.8,278.97394061]
[1741307401471,61.73394061,137.89,137.78,2.6179]
[1741307401677,0.05009762,137.88,137.85,0.04641495]
[1741307401873,61.73394061,137.86,137.73,81.0351703]
[1741307402163,1.45085237,137.85,137.74,61.73394061]
[1741307402370,1.45085237,137.85,137.77,61.73394061]
[1741307402571,1.45085237,137.85,137.76,61.73394061]
[1741307402774,1.45085237,137.85,137.73,65.6146089]
[1741307403161,61.73394061,137.76,137.65,78.4172703]
[1741307403468,68.99464061,137.73,137.65,78.4172703]
[1741307403668,61.73394061,137.73,137.65,78.4172703]
[1741307403859,1.45190562,137.75,137.65,78.4172703]
[1741307404176,1.45222189,137.72,137.66,90.79386544]
[1741307404366,1.45222189,137.72,137.66,29.05992483]
[1741307404677,61.73394061,137.68,137.66,5.4556798]
[1741307404872,1.50049602,137.72,137.66,5.4556798]
[1741307405180,1.45274932,137.67,137.66,5.4556798]
[1741307405368,1.45274932,137.67,137.66,1.6769798]
[1741307405673,7.2641,137.66,137.65,7.03e-05]
[1741307405865,5.09274932,137.67,137.65,0.05370848]
[1741307406062,62.33845082,137.66,137.63,91.98154001]
[1741307406268,65.97845082,137.66,137.47,8.53881871]
[1741307406462,62.33845082,137.6,137.49,17.12638672]
[1741307406670,62.33845082,137.57,137.46,2.4661]
[1741307407171,217.48,137.61,137.45,62.33845082]
[1741307407469,0.04824993,137.53,137.51,7.2719]
[1741307407676,62.33845082,137.62,137.51,14.51998672]
[1741307407677,1.45433391,137.52,137.51,14.51998672]
[1741307407974,1.45433391,137.52,137.46,2.6225]
[1741307408174,1.45433391,137.52,137.41,78.87710515]
[1741307408371,1.45433391,137.52,137.42,49.01160115]
[1741307408876,1.45433391,137.52,137.42,44.09890115]
[1741307409068,3.627e-05,137.48,137.46,0.05093079]
[1741307409269,1.45433391,137.52,137.49,7.2729]
[1741307409469,1.45433391,137.52,137.47,62.33845082]
[1741307409669,1.45433391,137.52,137.46,14.51995045]
[1741307409871,1.45433391,137.52,137.47,62.33845082]
[1741307410071,280.01845082,137.62,137.47,62.33845082]
[1741307410273,62.33845082,137.58,137.47,14.51991654]
[1741307410471,0.04790287,137.56,137.53,0.05038093]
[1741307410865,217.82,137.69,137.55,62.33845082]
[1741307411069,62.33845082,137.64,137.53,14.5702946]
[1741307411269,62.33845082,137.61,137.49,4.8933]
[1741307411475,62.33845082,137.58,137.49,16.93291367]
[1741307411672,62.33845082,137.58,137.42,2.4803]
[1741307411874,62.3884958,137.56,137.42,81.80170947]
[1741307412277,215.7457,137.96,137.54,62.3884958]
[1741307412467,62.3884958,137.69,137.54,62.3884958]
[1741307412872,62.3884958,137.74,137.6,62.3884958]
[1741307413382,62.3884958,137.74,137.55,62.3884958]
[1741307413383,106.70164732,137.87,137.69,62.3884958]
[1741307413571,62.3884958,137.84,137.69,62.3884958]
[1741307413773,62.3884958,137.84,137.7,2.3891]
[1741307413979,62.3884958,137.84,137.7,9.6509]
[1741307414165,0.05304908,137.78,137.72,62.3884958]
[1741307414466,0.05304908,137.78,137.7,16.90901367]
[1741307414670,62.3884958,137.76,137.63,4.8311]
[1741307414867,62.3884958,137.73,137.63,16.96651367]
[1741307415072,62.3884958,137.7,137.55,62.3884958]
[1741307415377,62.3884958,137.63,137.55,1.367e-05]
[1741307415572,62.3884958,137.67,137.48,0.2649]
[1741307415573,62.3884958,137.57,137.48,0.2649]
[1741307415773,62.3884958,137.63,137.48,62.6533958]
[1741307415980,62.3884958,137.6,137.48,0.2649]
[1741307416170,62.3884958,137.57,137.48,0.2649]
[1741307416574,62.3884958,137.57,137.53,0.05419889]
[1741307416780,62.3884958,137.54,137.53,0.05419889]
[1741307416982,62.44372833,137.54,137.53,0.05419889]
[1741307417171,62.44372833,137.54,137.48,31.0049]
[1741307417374,0.05523253,137.54,137.48,31.0049]
[1741307417681,62.3884958,137.63,137.52,0.04902775]
[1741307417883,62.3884958,137.67,137.52,2.62092775]
[1741307418083,62.3884958,137.67,137.56,7.2692]